bitfinex-derivatives/quotes_ETHF0:USTF0_20250503
["timestamp","ask_amount","ask_price","bid_price","bid_amount"]
[1746291784171,0.84482789,1825.1,1825.0,6.84581]
[1746291784871,1.94037789,1825.1,1825.0,6.84581]
[1746291785071,1.94035583,1825.1,1825.0,6.84581]
[1746291785975,1.94035583,1825.1,1825.0,5.7502]
[1746291786676,1.94032292,1825.1,1825.0,6.84581]
[1746291786973,0.84477716,1825.1,1825.0,6.84581]
[1746291788271,1.94032716,1825.1,1825.0,6.84581]
[1746291788674,1.9402345,1825.1,1825.0,6.84581]
[1746291789371,0.8446845,1825.1,1825.0,3.63801]
[1746291789575,0.8446845,1825.1,1825.0,6.84581]
[1746291790476,0.84467019,1825.1,1825.0,6.84581]
[1746291792275,0.84467472,1825.1,1825.0,6.84581]
[1746291793071,0.45283298,1825.1,1825.0,6.84581]
[1746291793271,1.0955,1825.2,1825.1,1.09555]
[1746291793469,0.84463837,1825.2,1825.1,6.28725]
[1746291793670,3.62926396,1825.4,1825.3,1.09543]
[1746291793981,4.02113099,1825.4,1825.3,4.30323]
[1746291794172,4.02114238,1825.4,1825.3,4.30323]
[1746291794372,4.44370656,1825.4,1825.3,6.83813]
[1746291794571,4.02112519,1825.4,1825.3,6.83813]
[1746291795369,3.62926396,1825.4,1825.3,6.83813]
[1746291797479,7.28019274,1825.6,1825.3,10.7427]
[1746291797678,7.28019274,1825.6,1825.5,4.30311]
[1746291797882,7.28019274,1825.6,1825.5,10.21511]
[1746291798176,3.63533674,1825.9,1825.8,1.09513]
[1746291798378,3.63533674,1825.9,1825.8,7.79793]
[1746291799083,3.63533674,1825.9,1825.8,10.35373]
[1746291802283,1.6429,1826.1,1826.0,1.09501]
[1746291802578,2.0331241,1826.1,1826.0,1.09501]
[1746291802777,2.0331241,1826.1,1826.0,1.90931]
[1746291804784,3.1280741,1826.1,1826.0,0.8143]
[1746291806486,2.0331241,1826.1,1826.0,0.8143]
[1746291806687,3.1280741,1826.1,1825.9,2.70813]
[1746291806888,1.6414,1826.0,1825.9,1.09507]
[1746291807092,1.6414,1826.0,1825.9,3.49547]
[1746291807589,1.6381,1826.0,1825.9,3.49547]
[1746291810890,1.6381,1826.0,1825.9,2.70537]
[1746291814188,1.09507,1825.9,1825.8,5.09248]
[1746291814392,1.88477,1825.9,1825.8,8.58048]
[1746291814594,0.7897,1825.9,1825.8,8.58048]
[1746291814984,0.7897,1825.9,1825.8,10.17468]
[1746291815185,3.2078,1826.3,1825.8,9.0796]
[1746291815388,3.2078,1826.3,1826.1,1.09492]
[1746291815389,0.7897,1826.2,1826.1,1.09492]
[1746291815690,1.88459,1826.2,1826.1,1.09492]
[1746291816083,2.2751936,1826.2,1826.1,1.09492]
[1746291816792,1.1803036,1826.2,1826.1,1.09492]
[1746291817782,1.1803036,1826.2,1826.1,3.60502]
[1746291817984,0.8468,1826.3,1826.2,1.09484]
[1746291818292,2.75376357,1826.3,1826.2,6.46404]
[1746291818694,2.7538802,1826.3,1826.2,6.46404]
[1746291818894,2.7538777,1826.3,1826.2,6.46404]
[1746291819291,1.6590477,1826.3,1826.2,6.46404]
[1746291819496,1.23763187,1826.3,1826.2,6.46404]
[1746291820399,1.65956792,1826.3,1826.2,6.46404]
[1746291820593,1.6596127,1826.3,1826.2,6.46404]
[1746291820795,1.23788411,1826.3,1826.2,7.32554]
[1746291821698,0.39108411,1826.3,1826.2,7.32554]
[1746291822299,1.22743733,1826.3,1826.2,7.32554]
[1746291822498,1.64961421,1826.3,1826.2,7.32554]
[1746291824003,1.65037626,1826.3,1826.2,7.32554]
[1746291825204,3.37847626,1826.3,1826.2,7.32554]
[1746291825704,2.5642,1826.3,1826.2,7.32554]
[1746291825905,3.37890957,1826.3,1826.2,7.32554]
[1746291827906,0.81470957,1826.3,1826.2,7.32554]
[1746291829301,1.91368,1826.4,1826.3,1.09483]
[1746291829504,1.63395031,1826.4,1826.3,2.83333]
[1746291829700,2.72872031,1826.4,1826.3,2.83333]
[1746291830205,2.72872031,1826.4,1826.3,6.55133]
[1746291831108,1.63395031,1826.4,1826.3,6.55133]
[1746291831500,3.22285031,1826.4,1826.3,6.55133]
[1746291832210,4.31762031,1826.4,1826.3,6.55133]
[1746291832408,0.81505031,1826.4,1826.3,6.55133]
[1746291832908,1.09476,1826.5,1826.4,1.09477]
[1746291833110,3.49861964,1826.5,1826.4,7.23427]
[1746291833608,0.81495964,1826.5,1826.4,7.23427]
[1746291834007,0.81495964,1826.5,1826.4,10.72227]
[1746291836412,3.52606,1826.6,1826.5,1.09471]
[1746291836605,4.34073905,1826.6,1826.5,2.82031]
[1746291837210,4.34073905,1826.6,1826.5,6.53831]
[1746291838306,4.34070406,1826.6,1826.5,6.53831]
[1746291838610,4.34070406,1826.6,1826.5,5.4436]
[1746291839110,4.34070406,1826.6,1826.5,3.718]
[1746291839312,5.14970406,1826.6,1826.5,3.718]
[1746291839906,4.33506,1826.6,1826.5,3.718]
[1746291840813,5.14977447,1826.6,1826.5,3.718]
[1746291841315,1.09477,1826.4,1826.3,1.09478]
[1746291841522,1.90948846,1826.4,1826.3,1.09478]
[1746291842110,1.90948846,1826.4,1826.3,4.81278]
[1746291842312,8.58368846,1826.4,1826.3,3.718]
[1746291842913,8.19166222,1826.4,1826.3,3.718]
[1746291843115,1.09501,1826.0,1825.9,10.84934533]
[1746291843317,1.90973919,1826.0,1825.9,10.84934533]
[1746291843713,1.90973919,1826.0,1825.9,9.75430533]
[1746291844015,1.90973919,1826.0,1825.9,7.29090533]
[1746291844218,1.09507,1825.9,1825.8,9.1198]
[1746291844410,4.31109919,1825.9,1825.8,3.2078]
[1746291844708,4.310985,1825.9,1825.8,3.2078]
[1746291845212,4.310985,1825.9,1825.8,6.9258]
[1746291846616,4.3107406,1825.9,1825.8,6.9258]
[1746291847017,4.31045426,1825.9,1825.8,6.9258]
[1746291847516,7.51825426,1825.9,1825.8,3.718]
[1746291848419,7.51792747,1825.9,1825.8,3.718]
[1746291848620,7.51760901,1825.9,1825.8,3.718]
[1746291849517,12.51760901,1825.9,1825.8,3.718]
[1746291850725,7.51760901,1825.9,1825.8,3.718]
[1746291852126,7.51644526,1825.9,1825.8,3.718]
[1746291853624,7.51585178,1825.9,1825.8,3.718]
[1746291856324,4.30805178,1825.9,1825.8,3.718]
[1746291856724,7.51585178,1825.9,1825.8,6.1808]
[1746291857323,7.51525281,1825.9,1825.8,6.1808]
[1746291859026,7.51518012,1825.9,1825.8,6.1808]
[1746291861231,4.30738012,1825.9,1825.8,6.1808]
[1746291861433,7.51518012,1825.9,1825.8,6.1808]
[1746291862632,7.5155315,1825.9,1825.8,6.1808]
[1746291863631,7.5155315,1825.9,1825.8,4.5882]
[1746291863829,7.5155315,1825.9,1825.8,3.718]
[1746291864334,7.51576767,1825.9,1825.8,3.718]
[1746291865435,7.51586295,1825.9,1825.8,3.718]
[1746291865633,7.51586295,1825.9,1825.6,0.0033]
[1746291865634,1.09519,1825.7,1825.6,0.0033]
[1746291865837,1.09519,1825.7,1825.1,5.912]
[1746291865838,1.09543,1825.3,1825.2,0.8543]
[1746291866033,1.09543,1825.3,1825.2,2.455]
[1746291866336,1.09543,1825.3,1825.2,6.173]
[1746291866534,1.48599686,1825.3,1825.2,6.173]
[1746291866737,2.7310374,1825.3,1825.2,6.173]
[1746291867128,2.30985783,1825.3,1825.2,6.173]
[1746291867337,2.73115578,1825.3,1825.2,6.173]
[1746291867537,1.90725578,1825.3,1825.2,6.173]
[1746291867740,1.48602248,1825.3,1825.2,6.173]
[1746291869446,1.48610222,1825.3,1825.2,6.173]
[1746291871245,1.48602417,1825.3,1825.2,6.173]
[1746291871435,1.90748873,1825.3,1825.2,6.173]
[1746291871642,1.90747,1825.3,1825.2,6.173]
[1746291872244,1.90747,1825.3,1825.2,7.26849]
[1746291872450,1.90747,1825.3,1825.2,6.173]
[1746291873050,1.90773665,1825.3,1825.2,6.173]
[1746291874853,1.90830274,1825.3,1825.2,6.173]
[1746291876549,1.90839981,1825.3,1825.2,6.173]
[1746291880056,3.2078,1825.5,1825.2,6.173]
[1746291880359,1.09543,1825.3,1825.2,4.5723]
[1746291880557,1.48659676,1825.3,1825.2,4.5723]
[1746291882057,1.48660009,1825.3,1825.2,4.5723]
[1746291883762,1.90850635,1825.3,1825.2,4.5723]
[1746291884261,4.30309,1825.6,1825.4,1.09536]
[1746291884460,4.30309,1825.6,1825.5,1.7242]
[1746291884661,5.11622018,1825.6,1825.5,1.7242]
[1746291885260,5.11622018,1825.6,1825.5,5.4422]
[1746291885460,5.11628078,1825.6,1825.5,5.4422]
[1746291887365,4.02099078,1825.6,1825.5,6.53751]
[1746291889159,4.02125718,1825.6,1825.5,6.53751]
[1746291889562,5.11650718,1825.6,1825.5,5.4422]
[1746291890866,5.11666105,1825.6,1825.5,5.4422]
[1746291892467,5.11677552,1825.6,1825.5,5.4422]
[1746291893469,5.11677552,1825.6,1825.5,6.53751]
[1746291893670,5.11694093,1825.6,1825.5,6.53751]
[1746291893871,5.11694093,1825.6,1825.5,5.4422]
[1746291894172,5.1169779,1825.6,1825.5,5.4422]
[1746291894471,5.11697821,1825.6,1825.5,5.4422]
[1746291894768,5.11697821,1825.6,1825.5,6.53751]
[1746291894969,5.11697821,1825.6,1825.5,8.22691]
[1746291895566,5.11697821,1825.6,1825.5,7.1316]
[1746291896073,5.11697114,1825.6,1825.5,7.1316]
[1746291896274,5.11697114,1825.6,1825.5,8.22691]
[1746291896472,5.11693902,1825.6,1825.5,8.22691]
[1746291896772,5.11689135,1825.6,1825.5,8.22691]
[1746291896969,5.11689135,1825.6,1825.5,7.1316]
[1746291897766,5.11692148,1825.6,1825.5,7.1316]
[1746291897966,5.11692148,1825.6,1825.5,6.2778]
[1746291899568,5.11689673,1825.6,1825.5,4.5884]
[1746291899875,5.11689673,1825.6,1825.5,3.718]
[1746291900572,10.11689673,1825.6,1825.5,3.718]
[1746291901279,10.11672121,1825.6,1825.5,3.718]
[1746291903082,5.11672121,1825.6,1825.5,3.718]
[1746291904281,5.11727731,1825.6,1825.5,3.718]
[1746291905976,4.72554448,1825.6,1825.5,3.718]
[1746291906170,6.81822296,1825.6,1825.5,3.718]
[1746291907083,6.81817517,1825.6,1825.5,3.718]
[1746291907880,6.81814049,1825.6,1825.5,3.718]
[1746291908785,10.30614049,1825.6,1825.5,3.718]
[1746291908986,16.4430143,1825.6,1825.5,3.718]
[1746291909191,1.09543,1825.3,1825.2,2.536]
[1746291909388,1.90952049,1825.3,1825.2,2.536]
[1746291909685,1.90950879,1825.3,1825.2,2.536]
[1746291909882,3.64600879,1825.3,1825.2,2.536]
[1746291910086,3.64600879,1825.3,1825.2,6.254]
[1746291910683,1.90950879,1825.3,1825.2,6.254]
[1746291912087,1.90943214,1825.3,1825.2,6.254]
[1746291913290,1.90940529,1825.3,1825.2,6.254]
[1746291913487,3.63940529,1825.3,1825.2,6.254]
[1746291918591,3.63926831,1825.3,1825.2,6.254]
[1746291922008,3.63944516,1825.3,1825.2,6.254]
[1746291923813,11.84740763,1825.3,1825.2,3.718]
[1746291924115,1.09573,1824.8,1824.7,7.29090533]
[1746291924313,5.11770763,1824.8,1824.7,7.29090533]
[1746291925111,6.74630763,1824.8,1824.7,7.29090533]
[1746291925406,5.11770763,1824.8,1824.7,7.29090533]
[1746291925610,6.81215761,1824.8,1824.7,7.29090533]
[1746291925811,6.81215107,1824.8,1824.7,7.29090533]
[1746291927213,6.81168816,1824.8,1824.7,7.29090533]
[1746291928316,6.81109725,1824.8,1824.7,7.29090533]
[1746291928917,6.81051081,1824.8,1824.7,7.29090533]
[1746291929813,1.09591,1824.5,1824.4,2.4697]
[1746291930013,5.11519081,1824.5,1824.4,0.8587]
[1746291930315,1.09603,1824.3,1824.0,3.488]
[1746291930612,1.09609,1824.2,1824.1,0.8587]
[1746291930819,1.48646078,1824.2,1824.1,1.7272]
[1746291932520,1.09609,1824.2,1824.1,1.7272]
[1746291933913,1.09598,1824.4,1824.1,9.935]
[1746291934118,1.09598,1824.4,1824.1,6.03111]
[1746291934617,4.30375,1824.5,1824.1,6.03111]
[1746291934809,4.30375,1824.5,1824.2,1.09609]
[1746291935005,4.30375,1824.5,1824.2,1.09607]
[1746291936318,7.79262,1824.7,1824.4,1.09594]
[1746291936517,1.48533368,1824.6,1824.5,1.6632]
[1746291939419,1.48536749,1824.6,1824.5,1.6632]
[1746291941119,1.48540652,1824.6,1824.5,1.6632]
[1746291941323,4.30361,1824.7,1824.5,1.6632]
[1746291941821,3.2078,1824.7,1824.5,1.6632]
[1746291942118,4.30359,1824.7,1824.5,2.75908]
[1746291942819,4.30359,1824.7,1824.5,1.6632]
[1746291943119,3.2078,1824.7,1824.5,1.6632]
[1746291943315,4.30363,1824.7,1824.5,1.6632]
[1746291943724,1.09585,1824.6,1824.5,1.6632]
[1746291944023,1.48565658,1824.6,1824.5,1.6632]
[1746291944224,3.89495658,1824.6,1824.5,0.8368]
[1746291944519,3.21960363,1824.6,1824.2,4.58506]
[1746291944719,1.09599,1824.4,1824.3,0.8133]
[1746291944916,1.09599,1824.4,1824.3,2.5346]
[1746291945122,2.70949,1824.4,1824.3,2.5346]
[1746291945423,3.51971154,1824.4,1824.3,0.8133]
[1746291945624,1.09609,1824.2,1824.1,5.912]
[1746291945824,1.09609,1824.2,1824.1,2.5346]
[1746291946217,2.70959,1824.2,1824.1,2.5346]
[1746291947118,5.09966,1824.3,1824.1,2.5346]
[1746291947417,5.09966,1824.3,1824.2,1.6281]
[1746291947622,5.48952663,1824.3,1824.2,1.6281]
[1746291948123,5.48952364,1824.3,1824.2,1.6281]
[1746291949428,5.91040318,1824.3,1824.2,1.6281]
[1746291949919,1.09609,1824.2,1824.1,0.8133]
[1746291950119,3.18445364,1824.2,1824.1,0.8133]
[1746291950423,3.18445364,1824.2,1824.1,2.4023]
[1746291950718,3.60551388,1824.2,1824.1,2.4023]
[1746291951822,0.81092388,1824.2,1824.1,2.4023]
[1746291952223,1.90701388,1824.2,1824.1,2.4023]
[1746291952724,3.55123388,1824.2,1823.7,3.2078]
[1746291952928,1.09627,1823.9,1823.8,2.5517]
[1746291953226,1.48613364,1823.9,1823.8,2.5517]
[1746291953428,1.90963834,1823.9,1823.8,2.5517]
[1746291954826,3.59503834,1823.9,1823.8,2.5517]
[1746291955325,1.09639,1823.7,1823.6,0.8662]
[1746291955626,1.90911061,1823.7,1823.6,3.4179]
[1746291956122,1.90419,1823.7,1823.6,3.4179]
[1746291956323,2.32586908,1823.7,1823.6,3.4179]
[1746291956524,1.90419,1823.7,1823.6,3.4179]
[1746291956716,2.71669009,1823.7,1823.6,3.4179]
[1746291956920,1.90419,1823.7,1823.6,3.4179]
[1746291957122,2.71665881,1823.7,1823.6,3.4179]
[1746291958029,2.71665881,1823.7,1823.6,2.5517]
[1746291958822,2.71600435,1823.7,1823.6,2.5517]
[1746291959430,2.29469216,1823.7,1823.6,2.5517]
[1746291960432,1.90419,1823.7,1823.6,2.5517]
[1746291960729,2.29453583,1823.7,1823.6,2.5517]
[1746291960927,2.71565924,1823.7,1823.6,2.5517]
[1746291961129,2.70909725,1823.7,1823.6,2.5517]
[1746291961332,2.28796339,1823.7,1823.6,2.5517]
[1746291961928,1.19811879,1823.7,1823.6,2.5517]
[1746291962123,1.48659827,1823.7,1823.6,2.5517]
[1746291962827,3.08739827,1823.7,1823.6,2.5517]
[1746291963632,3.0872221,1823.7,1823.6,2.5517]
[1746291966330,2.69719,1823.7,1823.6,2.5517]
[1746291968528,1.09639,1823.7,1823.6,2.5517]
[1746291968733,1.09631,1823.9,1823.7,1.09636]
[1746291968925,1.09631,1823.9,1823.7,2.72316]
[1746291969125,1.09631,1823.9,1823.8,0.7917]
[1746291969321,1.09631,1823.9,1823.8,2.4185]
[1746291973434,1.48689,1823.9,1823.8,2.4185]
[1746291973635,1.48689,1823.9,1823.8,3.51483]
[1746291973836,0.39058,1823.9,1823.8,3.51483]
[1746291974134,3.63683959,1824.3,1823.8,13.3671]
[1746291974336,4.73290959,1824.3,1824.2,1.09609]
[1746291974530,5.12368934,1824.3,1824.2,1.09609]
[1746291974838,1.09609,1824.2,1824.1,3.63751]
[1746291975638,1.618,1824.4,1824.1,2.5414]
[1746291975836,0.39073964,1824.3,1824.2,2.5554]
[1746291976039,1.48676964,1824.3,1824.2,3.65144]
[1746291976237,1.48678242,1824.3,1824.2,3.65144]
[1746291976543,1.48668991,1824.3,1824.2,3.65144]
[1746291977539,0.39065991,1824.3,1824.2,3.65144]
[1746291977739,2.71401,1824.4,1824.2,3.65144]
[1746291978041,2.71401,1824.4,1824.3,1.6317]
[1746291978343,3.52587788,1824.4,1824.3,1.6317]
[1746291979039,3.10461267,1824.4,1824.3,1.6317]
[1746291979240,3.52582431,1824.4,1824.3,1.6317]
[1746291979741,3.52565466,1824.4,1824.3,1.6317]
[1746291981540,3.5255546,1824.4,1824.3,1.6317]
[1746291982939,2.4295446,1824.4,1824.3,2.72773]
[1746291983243,2.00835043,1824.4,1824.3,2.72773]
[1746291983436,2.00831239,1824.4,1824.3,2.72773]
[1746291983739,3.2078,1824.7,1824.3,2.72773]
[1746291983936,3.2078,1824.7,1824.6,1.09585]
[1746291984136,3.59814897,1824.7,1824.6,1.09585]
[1746291984541,3.59814897,1824.7,1824.6,1.91685]
[1746291984737,4.69393897,1824.7,1824.6,0.821]
[1746291985043,4.69378843,1824.7,1824.6,0.821]
[1746291985336,6.20243959,1824.8,1824.6,0.821]
[1746291985337,3.63683959,1824.8,1824.7,1.09579]
[1746291985543,3.63683959,1824.8,1824.7,1.92939]
[1746291985734,3.63683959,1824.8,1824.7,8.51969]
[1746291985929,5.43832257,1824.9,1824.8,1.09573]
[1746291986143,5.43832257,1824.9,1824.8,9.38283]
[1746291986341,5.43832257,1824.9,1824.8,14.38283]
[1746291987141,7.28019274,1825.0,1824.9,1.09567]
[1746291987342,7.28019274,1825.0,1824.9,2.74497]
[1746291987545,7.28019274,1825.0,1824.9,7.74497]
[1746291988443,1.09541,1825.4,1825.2,1.09547]
[1746291988641,1.09541,1825.4,1825.3,5.1373]
[1746291988942,1.09541,1825.4,1825.3,5.9726]
[1746291989144,6.6968,1825.8,1825.3,7.8601]
[1746291989345,1.0953,1825.6,1825.4,1.6493]
[1746291989946,1.09531,1825.5,1825.4,1.6493]
[1746291990446,4.42361,1825.7,1825.2,3.2078]
[1746291990634,1.09543,1825.3,1825.2,4.8696]
[1746291990945,1.09543,1825.3,1825.2,5.1498]
[1746291991146,1.09543,1825.3,1825.2,3.488]
[1746291992151,1.09543,1825.3,1825.1,8.66935]
[1746291992345,4.8279,1825.4,1825.0,4.8681]
[1746291992549,1.09555,1825.1,1825.0,4.30341]
[1746291992743,1.09555,1825.1,1825.0,6.6948]
[1746291993652,1.09561,1825.0,1824.9,5.912]
[1746291993852,2.73861,1825.3,1824.9,5.912]
[1746291994148,1.09561,1825.0,1824.9,5.912]
[1746291995046,1.09567,1824.9,1824.8,6.6948]
[1746291995646,1.09565,1825.0,1824.8,7.79053]
[1746291995953,1.09565,1825.0,1824.8,5.90203]
[1746291995954,1.09561,1825.0,1824.8,5.90203]
[1746291996148,1.09561,1825.0,1824.8,9.38903]
[1746291996452,1.0956,1825.1,1824.9,1.09567]
[1746291997159,1.0956,1825.1,1824.9,1.5985]
[1746291997854,1.09561,1825.0,1824.9,1.5985]
[1746291998451,1.09561,1825.0,1824.8,6.6948]
[1746291998651,1.09561,1825.0,1824.8,9.47572]
[1746291998853,1.09567,1824.9,1824.8,8.38]
[1746291999462,1.09565,1825.0,1824.8,4.893]
[1746292000658,1.09567,1824.9,1824.8,4.893]
[1746292001065,1.09567,1824.9,1824.8,1.6852]
[1746292003266,4.43128,1825.0,1824.7,3.487]
[1746292003469,1.09573,1824.8,1824.7,3.487]
[1746292004467,1.09579,1824.7,1824.6,11.6884]
[1746292004661,1.09579,1824.7,1824.6,15.1754]
[1746292005062,1.09579,1824.7,1824.6,11.6884]
[1746292005361,1.09579,1824.7,1824.6,9.1198]
[1746292005566,1.09579,1824.7,1824.6,5.912]
[1746292005966,2.84879,1824.7,1824.6,5.912]
[1746292006460,1.09591,1824.5,1824.4,2.4442]
[1746292006662,1.09597,1824.4,1824.3,2.42]
[1746292006870,1.09597,1824.4,1824.1,10.2579]
[1746292006871,1.09609,1824.2,1824.1,10.2579]
[1746292007171,1.09609,1824.2,1824.1,11.8432]
[1746292009267,1.09615,1824.1,1824.0,3.2078]
[1746292009464,1.09627,1823.9,1823.8,9.1535]
[1746292010272,1.09627,1823.9,1823.8,7.5061]
[1746292013576,1.09627,1823.9,1823.8,1.5941]
[1746292019578,1.09639,1823.7,1823.6,0.8502]
[1746292020375,1.09645,1823.6,1823.5,3.2078]
[1746292021574,1.90705,1823.6,1823.5,3.2078]
[1746292021771,1.90705,1823.6,1823.0,7.29090533]
[1746292021772,2.74152,1823.4,1823.0,7.29090533]
[1746292021974,1.09681,1823.0,1822.9,7.76651596]
[1746292022183,4.29804473,1823.0,1822.6,16.45130753]
[1746292022377,4.30479,1822.7,1822.6,13.59264753]
[1746292022579,8.60296577,1822.7,1822.6,12.43708753]
[1746292022876,13.1839993,1822.7,1822.6,12.43708753]
[1746292023179,17.34360301,1822.7,1822.6,12.48811433]
[1746292023380,1.09711,1822.5,1822.4,18.75678531]
[1746292023680,5.13381266,1822.5,1822.4,18.75678531]
[1746292023883,5.56027975,1822.5,1822.4,18.75678531]
[1746292024181,5.56027975,1822.5,1822.3,1.7487]
[1746292024182,1.09717,1822.4,1822.3,1.7487]
[1746292024379,1.52363709,1822.4,1822.3,1.7487]
[1746292024783,0.42646709,1822.4,1822.3,1.7487]
[1746292024975,0.42646709,1822.4,1822.3,2.61491897]
[1746292025176,3.2078,1822.5,1822.3,2.61491897]
[1746292025378,1.09717,1822.4,1822.3,0.02391897]
[1746292025679,4.58917,1822.4,1822.3,0.02391897]
[1746292026081,5.40447147,1822.4,1822.3,0.02391897]
[1746292026388,1.09723,1822.3,1822.2,18.19613074]
[1746292026683,6.37765518,1822.3,1822.2,18.19613074]
[1746292027072,10.09565518,1822.3,1822.2,18.19613074]
[1746292027276,15.09565518,1822.3,1822.2,18.19613074]
[1746292027679,10.09565518,1822.3,1822.2,18.19613074]
[1746292028680,15.09565518,1822.3,1822.2,18.19613074]
[1746292028879,15.09565518,1822.3,1821.9,1.6525]
[1746292028880,1.09742,1822.0,1821.9,1.6525]
[1746292029083,3.493,1822.1,1821.9,1.6525]
[1746292029280,4.30512,1822.2,1821.9,1.6525]
[1746292029688,1.09736,1822.1,1821.9,1.6525]
[1746292029883,4.30514,1822.2,1821.9,1.6525]
[1746292030086,4.30514,1822.2,1822.0,0.05884403]
[1746292030285,1.09736,1822.1,1822.0,0.05884403]
[1746292030589,0.9875559,1821.9,1821.7,1.5848]
[1746292030787,1.09752,1821.9,1821.7,1.5848]
[1746292031088,1.6191,1822.1,1821.7,1.5848]
[1746292031089,1.09754,1821.8,1821.7,1.5848]
[1746292031280,1.09751,1821.9,1821.7,1.63591007]
[1746292031688,1.09745,1822.0,1821.7,1.63591007]
[1746292031887,3.2078,1821.8,1821.7,1.63591007]
[1746292032288,1.09752,1821.9,1821.7,1.63591007]
[1746292032483,3.2078,1822.0,1821.7,1.63591007]
[1746292032682,3.2078,1822.0,1821.8,1.09753]
[1746292032886,3.2078,1822.0,1821.9,1.6223]
[1746292033289,3.2078,1822.0,1821.9,1.67341007]
[1746292033981,4.30522,1822.0,1821.9,1.67341007]
[1746292035589,4.30522,1822.0,1821.9,0.05111007]
[1746292035789,4.73233123,1822.0,1821.9,0.05111007]
[1746292035988,6.45673123,1822.0,1821.9,0.05111007]
[1746292036191,10.17473123,1822.0,1821.9,0.05111007]
[1746292036784,15.17473123,1822.0,1821.9,0.05111007]
[1746292036982,1.09754,1821.8,1821.7,1.643]
[1746292037183,4.30534,1821.8,1821.7,1.643]
[1746292037694,4.73245123,1821.8,1821.7,1.643]
[1746292038291,4.30534,1821.8,1821.7,1.643]
[1746292038488,1.0976,1821.7,1821.6,5.912]
[1746292038692,3.2078,1822.0,1821.7,2.71838]
[1746292038891,3.2078,1822.0,1821.7,1.6208]
[1746292039193,1.09754,1821.8,1821.7,1.6208]
[1746292039588,1.0976,1821.7,1821.5,1.6786]
[1746292040185,1.09766,1821.6,1821.5,1.6786]
[1746292040391,4.30546,1821.6,1821.5,1.6786]
[1746292040791,1.09774,1821.5,1821.2,7.00987]
[1746292041090,3.2078,1821.6,1821.2,7.5836]
[1746292041091,4.3055,1821.6,1821.2,7.5836]
[1746292041295,3.2078,1821.6,1821.5,1.09772]
[1746292041496,3.2078,1821.9,1821.4,3.495]
[1746292041789,3.2078,1822.1,1821.7,1.09757]
[1746292041991,1.0975,1821.9,1821.8,1.594]
[1746292042687,4.73309157,1821.9,1821.8,1.594]
[1746292043093,1.0976,1821.7,1821.6,1.6787]
[1746292043490,1.09756,1821.8,1821.6,2.77632]
[1746292043689,6.9258,1821.9,1821.7,1.6787]
[1746292043900,8.02328,1821.9,1821.8,0.8017]
[1746292044198,8.45138806,1821.9,1821.8,0.8017]
[1746292044996,5.24358806,1821.9,1821.8,0.8017]
[1746292045197,0.42810806,1821.9,1821.8,0.8017]
[1746292045396,0.42810806,1821.9,1821.8,1.89924]
[1746292045897,3.718,1822.1,1822.0,1.09742]
[1746292046194,3.2078,1822.4,1822.3,1.09723]
[1746292046390,1.09705,1822.7,1822.2,2.74324]
[1746292046589,0.42948323,1822.6,1822.5,1.09706]
[1746292047094,0.42948323,1822.6,1822.5,9.30486]
[1746292047295,0.42948323,1822.6,1822.5,10.91536]
[1746292048196,0.41890504,1823.0,1822.5,18.47298]
[1746292048388,0.41890504,1823.0,1822.9,4.30467]
[1746292048584,0.41890504,1823.0,1822.9,7.90867]
[1746292048789,0.41890504,1823.0,1822.9,12.90867]
[1746292049196,0.41890504,1823.0,1822.9,7.90867]
[1746292050695,0.41890504,1823.0,1822.9,4.30467]
[1746292050897,1.51571504,1823.0,1822.9,3.2078]
[1746292051093,1.09693,1822.8,1822.7,9.2618]
[1746292051395,1.53818881,1822.8,1822.7,5.6578]
[1746292051593,1.09711,1822.5,1822.4,0.7912]
[1746292051800,1.09717,1822.4,1822.3,0.8279]
[1746292052098,1.09717,1822.4,1822.2,4.70129]
[1746292052099,5.25647881,1822.4,1822.2,4.70129]
[1746292052397,0.44125881,1822.3,1822.1,5.49651]
[1746292052703,3.718,1822.4,1822.3,1.09723]
[1746292052901,4.15965672,1822.4,1822.3,1.09723]
[1746292053101,0.44165808,1822.4,1822.3,1.09723]
[1746292053299,0.44160163,1822.4,1822.3,1.09723]
[1746292054195,4.15960163,1822.4,1822.3,1.09723]
[1746292054402,3.718,1822.4,1822.3,1.09723]
[1746292055099,4.30485,1822.6,1822.4,1.09715]
[1746292055310,1.09729,1822.2,1822.1,1.89354]
[1746292055500,1.9271101,1822.2,1822.1,0.7962]
[1746292055696,4.0376201,1822.2,1821.9,4.4309]
[1746292055993,1.09754,1821.8,1821.7,0.02336]
[1746292056191,5.13505094,1821.8,1821.7,0.02336]
[1746292056393,10.13505094,1821.8,1821.7,0.02336]
[1746292056597,10.13494312,1821.8,1821.7,0.02336]
[1746292057202,15.59584312,1821.8,1821.7,0.02336]
[1746292057398,10.59584312,1821.8,1821.7,0.02336]
[1746292057605,10.59557796,1821.8,1821.7,0.02336]
[1746292058499,10.59547235,1821.8,1821.7,0.02336]
[1746292059903,10.20754996,1821.8,1821.7,0.02336]
[1746292060403,10.63396841,1821.8,1821.7,0.02336]
[1746292061397,1.0976,1821.7,1821.5,1.6712]
[1746292061697,6.84658841,1821.6,1821.5,1.6712]
[1746292061901,5.32235305,1821.6,1821.2,0.8509]
[1746292062100,3.2078,1821.4,1821.1,1.6607]
[1746292062301,1.0979,1821.2,1821.1,1.6607]
[1746292062801,1.09803,1821.0,1820.8,4.4611]
[1746292063104,0.44078705,1820.9,1820.4,3.2078]
[1746292063295,1.7152,1820.9,1820.6,1.5938]
[1746292063495,0.42642759,1820.8,1820.7,1.0982]
[1746292063695,1.52460759,1820.8,1820.5,4.30611]
[1746292063900,1.52465759,1820.7,1820.5,6.8118]
[1746292064201,0.42642759,1820.6,1820.4,5.51126]
[1746292064600,1.09827,1820.6,1820.4,5.51126]
[1746292064801,2.81347,1820.6,1820.4,5.51126]